fUSD/lending_fUSD_20241230
["ID","MTS","AMOUNT","RATE_DAILY","PERIOD"]
[347170810,1735543833152,-163.41378783,0.00016396,2]
[347170811,1735543833161,-9379.222979,0.000164,2]
[347170813,1735543833171,-2975.2682569,0.000164,2]
[347170815,1735543833181,-436.94445062,0.000164,2]
[347170818,1735543833193,-887.26298672,0.000164,2]
[347170820,1735543833202,-163.41378783,0.000164,2]
[347170823,1735543833211,-150.0,0.00016402,2]
[347170827,1735543833221,-200.0,0.00016438,2]
[347170829,1735543833235,-150.0,0.00016438,2]
[347170832,1735543833245,-150.0,0.00016438,2]
[347170835,1735543833255,-200.0,0.00016443,2]
[347170838,1735543833267,-200.0,0.00016445,2]
[347170841,1735543833277,-246.85974084,0.00016466,2]
[347170844,1735543833286,-150.0,0.00016466,2]
[347170847,1735543833296,-150.0,0.00016466,2]
[347170850,1735543833306,-497.24,0.00016477,2]
[347170853,1735543833315,-10855.59583287,0.00016477,2]
[347170856,1735543833325,-500.0,0.00016477,2]
[347170859,1735543833334,-500.0,0.00016477,2]
[347170862,1735543833344,-2483.356414,0.00016477,2]
[347170865,1735543833355,-242.0580797,0.00016477,2]
[347170868,1735543833364,-638.83,0.00016478,2]
[347170871,1735543833374,-676.63,0.00016478,2]
[347170874,1735543833385,-500.0,0.00016478,2]
[347170877,1735543833395,-756.46,0.00016478,2]
[347170881,1735543833405,-500.0,0.00016478,2]
[347170884,1735543833415,-500.0,0.00016478,2]
[347170887,1735543833425,-500.0,0.00016478,2]
[347170890,1735543833435,-500.0,0.00016478,2]
[347170893,1735543833444,-500.0,0.00016478,2]
[347170896,1735543833454,-500.0,0.00016478,2]
[347170899,1735543833463,-906.61,0.00016478,2]
[347170902,1735543833472,-1407.44,0.00016478,2]
[347170905,1735543833482,-500.0,0.00016478,2]
[347170908,1735543833491,-590.26,0.00016478,2]
[347170911,1735543833501,-510.97,0.00016478,2]
[347170914,1735543833510,-500.0,0.00016479,2]
[347170917,1735543833519,-500.0,0.00016479,2]
[347170920,1735543833528,-206.24867003,0.00016479,2]
[347170922,1735543833538,-500.0,0.00016479,2]
[347170924,1735543833549,-500.0,0.00016479,2]
[347170926,1735543833559,-200.0,0.00016479,2]
[347170928,1735543833569,-500.0,0.00016479,2]
[347170930,1735543833579,-158.751719,0.00016479,2]
[347170932,1735543833588,-3824.80285,0.00016479,2]
[347170934,1735543833597,-3134.759455,0.00016479,2]
[347170936,1735543833606,-500.0,0.00016479,2]
[347170938,1735543833616,-500.0,0.00016479,2]
[347170940,1735543833627,-597.60958937,0.00016479,2]
[347170942,1735543833637,-191.12,0.00016479,2]
[347170944,1735543833647,-500.0,0.00016479,2]
[347170946,1735543833656,-500.0,0.00016479,2]
[347170948,1735543833665,-473.171239,0.00016479,2]
[347170950,1735543833675,-500.0,0.00016479,2]
[347170952,1735543833684,-500.0,0.00016479,2]
[347170954,1735543833694,-1366.17,0.00016479,2]
[347170956,1735543833703,-1405.77,0.00016479,2]
[347170958,1735543833712,-586.21,0.00016479,2]
[347170960,1735543833721,-500.0,0.00016479,2]
[347170962,1735543833730,-1077.19,0.00016479,2]
[347170964,1735543833739,-500.0,0.00016479,2]
[347170966,1735543833748,-1183.62,0.00016479,2]
[347170968,1735543833758,-2864.67,0.00016479,2]
[347170970,1735543833767,-500.0,0.00016479,2]
[347170972,1735543833777,-577.15,0.00016479,2]
[347170974,1735543833786,-1607.06,0.00016479,2]
[347170976,1735543833795,-500.0,0.00016479,2]
[347170978,1735543833804,-500.0,0.00016479,2]
[347170979,1735543833813,-1330.83,0.00016479,2]
[347170981,1735543833823,-957.48,0.00016479,2]
[347170983,1735543833833,-500.0,0.00016479,2]
[347170985,1735543833842,-3424.93,0.00016479,2]
[347170987,1735543833851,-2595.32,0.00016479,2]
[347170989,1735543833860,-155.66350197,0.00016479,2]
[347170991,1735543833870,-577.328732,0.00016479,2]
[347170993,1735543833879,-500.0,0.00016479,2]
[347170995,1735543833889,-6046.06,0.00016479,2]
[347170996,1735543833899,-500.0,0.00016479,2]
[347170997,1735543833908,-500.0,0.00016479,2]
[347170998,1735543833917,-4235.31,0.00016479,2]
[347170999,1735543833928,-500.0,0.00016479,2]
[347171000,1735543833937,-650.22,0.00016479,2]
[347171001,1735543833946,-251.24,0.00016479,2]
[347171002,1735543833956,-500.0,0.00016479,2]
[347171003,1735543833966,-500.0,0.00016479,2]
[347171004,1735543833975,-500.0,0.00016479,2]
[347171005,1735543833984,-1852.92,0.00016479,2]
[347171006,1735543833994,-500.0,0.00016479,2]
[347171007,1735543834003,-500.0,0.00016479,2]
[347171008,1735543834013,-500.0,0.00016479,2]
[347171009,1735543834022,-992.68,0.00016479,2]
[347171010,1735543834032,-500.0,0.00016479,2]
[347171011,1735543834041,-2090.45,0.00016479,2]
[347171012,1735543834050,-500.0,0.00016479,2]
[347171013,1735543834059,-692.28,0.00016479,2]
[347171014,1735543834068,-977.68,0.00016479,2]
[347171015,1735543834078,-500.0,0.00016479,2]
[347171016,1735543834087,-500.0,0.00016479,2]
[347171017,1735543834096,-410.69,0.00016479,2]
[347171018,1735543834105,-500.0,0.00016479,2]
[347171019,1735543834115,-500.0,0.00016479,2]
[347171020,1735543834125,-819.61,0.00016479,2]
[347171021,1735543834134,-500.0,0.00016479,2]
[347171022,1735543834143,-500.0,0.00016479,2]
[347171023,1735543834153,-500.0,0.00016479,2]
[347171024,1735543834163,-500.0,0.00016479,2]
[347171025,1735543834173,-652.4,0.00016479,2]
[347171026,1735543834183,-512.31414895,0.00016479,2]
[347171027,1735543834192,-500.0,0.00016479,2]
[347171028,1735543834201,-500.0,0.00016479,2]
[347171029,1735543834211,-752.84,0.00016479,2]
[347171030,1735543834221,-500.0,0.00016479,2]
[347171031,1735543834235,-626.89,0.00016479,2]
[347171032,1735543834244,-584.73,0.00016479,2]
[347171033,1735543834254,-500.0,0.00016479,2]
[347171034,1735543834264,-1105.46,0.00016479,2]
[347171035,1735543834275,-500.0,0.00016479,2]
[347171036,1735543834285,-796.23,0.00016479,2]
[347171037,1735543834295,-500.0,0.00016479,2]
[347171038,1735543834305,-500.0,0.00016479,2]
[347171039,1735543834315,-554.52,0.00016479,2]
[347171040,1735543834324,-500.0,0.00016479,2]
[347171041,1735543834334,-500.0,0.00016479,2]
[347171042,1735543834344,-331.8,0.00016479,2]
[347171043,1735543834353,-1660.49,0.00016479,2]
[347171044,1735543834363,-852.68,0.00016479,2]
[347171045,1735543834372,-511.43208948,0.00016479,2]
[347171046,1735543834382,-500.0,0.00016479,2]
[347171047,1735543834391,-1360.5,0.00016479,2]
[347171048,1735543834401,-500.0,0.00016479,2]
[347171049,1735543834411,-500.0,0.00016479,2]
[347171050,1735543834421,-500.0,0.00016479,2]
[347171051,1735543834431,-500.0,0.00016479,2]
[347171052,1735543834441,-500.0,0.00016479,2]
[347171053,1735543834451,-654.23,0.00016479,2]
[347171054,1735543834461,-2770.03,0.00016479,2]
[347171055,1735543834470,-500.0,0.00016479,2]
[347171056,1735543834479,-7540.55,0.00016479,2]
[347171057,1735543834489,-946.14,0.00016479,2]
[347171058,1735543834499,-500.0,0.00016479,2]
[347171059,1735543834510,-502.1,0.00016479,2]
[347171060,1735543834520,-1543.0,0.00016479,2]
[347171061,1735543834529,-542851.93575876,0.0001648,2]
[347171062,1735543834697,-1125.00411603,0.0001648,2]
[347171063,1735543834731,-16468.99057552,0.0001648,2]
[347171064,1735543834743,-2857.18010758,0.0001648,2]
[347171065,1735543834763,-13309.02492232,0.0001648,2]
[347171066,1735543834792,-478.31588386,0.00016478,2]
[347171067,1735543834803,-21.68411614,0.00016478,2]
[347171068,1735543834812,-2988.27325876,0.0001648,2]
[347171069,1735543838114,-636.0,0.0001616,2]
[347171070,1735543838123,-330.12,0.00016479,2]
[347171071,1735543838133,-500.0,0.00016479,2]
[347171072,1735543838142,-788.76152453,0.0001648,2]
[347171073,1735543838218,-562.48140947,0.0001648,2]
[347171074,1735543838230,-366189.30837975,0.0001648,2]
[347171075,1735543838321,-998.39519968,0.0001648,2]
[347171076,1735543838333,-1000.72126,0.0001648,2]
[347171077,1735543838347,-64007.08608384,0.0001648,2]
[347171078,1735543838358,-9624.74887865,0.0001648,2]
[347171230,1735543840029,-474.44416233,0.00016478,2]
[347171462,1735543843284,-150.0,0.00016161,2]
[347171463,1735543843294,-150.0,0.00016363,2]
[347171464,1735543843305,-25.55583767,0.00016478,2]
[347171465,1735543843315,-1380.08,0.00016478,2]
[347171466,1735543843326,-509.91,0.00016479,2]
[347171467,1735543843336,-853.91,0.00016479,2]
[347171468,1735543843346,-566.85,0.00016479,2]
[347171469,1735543843356,-39852.41656221,0.0001648,2]
[347171489,1735543857670,9757.66516439,0.00012999,2]
[347171493,1735543998144,8781.89864795,0.00012999,2]
[347171496,1735544242804,2500.0,0.00016478,120]
[347171497,1735544242912,154.79850539,0.00016752,120]
[347171499,1735544422695,171.79,0.00010137,2]
[347171503,1735544493502,-4719.8832478,0.00016499,7]
[347171504,1735544493541,-421.45769997,0.00016499,7]
[347171505,1735544493580,-386.68509897,0.00016499,7]
[347171506,1735544493651,-88943.94790652,0.00016499,7]
[347171507,1735544504181,-6000.0,0.00016499,7]
[347171509,1735544693047,242315.81557548,0.00011011,2]
[347171510,1735544693069,172589.69319055,0.00011011,2]
[347171511,1735544732105,-442.0,0.00013438,2]
[347171512,1735544732127,-127.23215871,0.00014844,2]
[347171513,1735544838131,-494.02747145,0.00014513,2]
[347171617,1735544955131,-300.0,0.00013999,2]
[347171618,1735544955152,-33800.0,0.00014,10]
[347171619,1735544955172,-13188.2879107,0.00014112,2]
[347171621,1735545032198,-150.0,0.00014199,2]
[347171622,1735545032207,-250.0,0.00014205,2]
[347171623,1735545032217,-1373.74703026,0.00014212,2]
[347171624,1735545032232,-3276.84887466,0.00014212,2]
[347171625,1735545032243,-2600.28477395,0.00014212,2]
[347171626,1735545032370,-540.0,0.00014212,2]
[347171627,1735545032381,-535.47,0.00014212,2]
[347171628,1735545032393,-373.89932113,0.00014212,2]
[347171629,1735545032404,-323.36,0.00014219,2]
[347171630,1735545032413,-388.93252855,0.00014513,2]
[347171631,1735545032423,-26.86423799,0.00014844,2]
[347171632,1735545032433,-150.0,0.00014844,2]
[347171633,1735545032442,-171.77055155,0.00014844,2]
[347171634,1735545032451,-150.0,0.00014844,2]
[347171635,1735545032460,-219.31500054,0.00014844,2]
[347171636,1735545032470,-150.0,0.00014844,2]
[347171637,1735545032479,-25.98250395,0.00014844,2]
[347171638,1735545032491,-250.85340938,0.00014844,2]
[347171639,1735545032500,-24.6596001,0.00014844,2]
[347171640,1735545032512,-125.3403999,0.00014844,2]
[347171641,1735545032521,-1000.0,0.00014844,2]
[347171642,1735545032530,-154.0963967,0.0001486,2]
[347171643,1735545032539,-150.0,0.00014864,2]
[347171644,1735545032549,-154.0963967,0.00014877,2]
[347171645,1735545032558,-150.0,0.00014878,2]
[347171646,1735545032567,-150.0,0.00014885,2]
[347171647,1735545032577,-154.0963967,0.00014894,2]
[347171648,1735545032586,-19918.14704314,0.000149,2]
[347171649,1735545032595,-150.0,0.00014906,2]
[347171650,1735545032604,-154.0963967,0.0001491,2]
[347171651,1735545032613,-150.0,0.00014913,2]
[347171652,1735545032622,-150.0,0.00014926,2]
[347171653,1735545032631,-154.0963967,0.00014927,2]
[347171654,1735545032640,-154.0963967,0.00014944,2]
[347171655,1735545032649,-150.0,0.00014947,2]
[347171656,1735545032658,-150.0,0.00014947,2]
[347171657,1735545032670,-154.0963967,0.0001496,2]
[347171658,1735545032681,-150.0,0.00014962,2]
[347171659,1735545032690,-150.0,0.00014968,2]
[347171660,1735545032699,-154.0963967,0.00014977,2]
[347171661,1735545032710,-150.0,0.00014981,2]
[347171662,1735545032719,-150.0,0.00014988,2]
[347171663,1735545032729,-154.0963967,0.00014994,2]
[347171664,1735545032739,-150.0,0.00015009,2]
[347171665,1735545032748,-154.0963967,0.0001501,2]
[347171666,1735545032758,-150.0,0.00015016,2]
[347171667,1735545032767,-154.0963967,0.00015027,2]
[347171668,1735545032777,-150.0,0.00015029,2]
[347171670,1735545032787,-154.0963967,0.00015044,2]
[347171672,1735545032797,-150.0,0.0001505,2]
[347171673,1735545032805,-150.0,0.0001505,2]
[347171675,1735545032815,-154.0963967,0.0001506,2]
[347171678,1735545032825,-1000.0,0.00015068,2]
[347171680,1735545032834,-150.0,0.00015071,2]
[347171681,1735545032843,-154.0963967,0.00015077,2]
[347171684,1735545032853,-150.0,0.00015079,2]
[347171685,1735545032862,-150.0,0.00015084,2]
[347171687,1735545032871,-150.0,0.00015091,2]
[347171689,1735545032881,-154.0963967,0.00015094,2]
[347171691,1735545032890,-154.0963967,0.0001511,2]
[347171693,1735545032899,-150.0,0.00015112,2]
[347171694,1735545032908,-150.0,0.00015119,2]
[347171695,1735545032917,-154.0963967,0.00015127,2]
[347171696,1735545032926,-150.0,0.00015132,2]
[347171698,1735545032935,-154.0963967,0.00015144,2]
[347171700,1735545032945,-150.0,0.00015153,2]
[347171702,1735545032954,-150.0,0.00015153,2]
[347171704,1735545032964,-154.0963967,0.0001516,2]
[347171706,1735545032973,-150.0,0.00015174,2]
[347171708,1735545032983,-154.0963967,0.00015177,2]
[347171710,1735545032993,-150.0,0.00015187,2]
[347171712,1735545033003,-154.0963967,0.00015194,2]
[347171714,1735545033013,-150.0,0.00015194,2]
[347171716,1735545033023,-150.0,0.00015197,2]
[347171718,1735545033033,-154.0963967,0.0001521,2]
[347171720,1735545033043,-150.0,0.00015215,2]
[347171723,1735545033052,-150.0,0.00015222,2]
[347171725,1735545033063,-154.0963967,0.00015227,2]
[347171727,1735545033072,-150.0,0.00015236,2]
[347171729,1735545033082,-154.0963967,0.00015244,2]
[347171730,1735545033092,-150.0,0.00015256,2]
[347171731,1735545033102,-150.0,0.00015256,2]
[347171732,1735545033111,-154.0963967,0.0001526,2]
[347171733,1735545033120,-150.0,0.00015277,2]
[347171734,1735545033130,-154.0963967,0.00015277,2]
[347171735,1735545033139,-150.0,0.00015291,2]
[347171736,1735545033149,-154.0963967,0.00015294,2]
[347171737,1735545033159,-150.0,0.00015297,2]
[347171738,1735545033168,-4141.35,0.00015302,2]
[347171739,1735545033178,-1000.0,0.00015306,2]
[347171740,1735545033187,-250.0,0.00015309,2]
[347171741,1735545033196,-154.0963967,0.0001531,2]
[347171742,1735545033206,-150.0,0.00015315,2]
[347171743,1735545033215,-150.0,0.00015318,2]
[347171744,1735545033225,-150.0,0.00015325,2]
[347171745,1735545033235,-154.0963967,0.00015327,2]
[347171746,1735545033244,-167.79,0.00015336,2]
[347171747,1735545033253,-150.0,0.00015339,2]
[347171748,1735545033262,-1000.0,0.00015342,2]
[347171749,1735545033272,-154.0963967,0.00015344,2]
[347171750,1735545033282,-150.0,0.00015359,2]
[347171751,1735545033291,-150.0,0.00015359,2]
[347171752,1735545033301,-154.0963967,0.0001536,2]
[347171753,1735545033311,-154.0963967,0.00015377,2]
[347171754,1735545033321,-150.0,0.0001538,2]
[347171755,1735545033330,-154.0963967,0.00015394,2]
[347171756,1735545033340,-150.0,0.00015394,2]
[347171757,1735545033349,-150.0,0.000154,2]
[347171758,1735545033359,-154.0963967,0.0001541,2]
[347171759,1735545033368,-150.0,0.00015421,2]
[347171760,1735545033378,-154.0963967,0.00015427,2]
[347171761,1735545033388,-150.0,0.00015428,2]
[347171762,1735545033397,-150.0,0.00015433,2]
[347171763,1735545033407,-150.0,0.00015442,2]
[347171764,1735545033416,-154.0963967,0.00015444,2]
[347171765,1735545033426,-154.0963967,0.0001546,2]
[347171766,1735545033437,-150.0,0.00015462,2]
[347171767,1735545033447,-150.0,0.00015462,2]
[347171768,1735545033457,-154.0963967,0.00015477,2]
[347171769,1735545033467,-150.0,0.00015479,2]
[347171770,1735545033477,-150.0,0.00015483,2]
[347171771,1735545033485,-154.0963967,0.00015494,2]
[347171772,1735545033495,-150.0,0.00015497,2]
[347171773,1735545033505,-7328.0,0.000155,2]
[347171774,1735545033515,-150.0,0.00015504,2]
[347171775,1735545033524,-154.0963967,0.0001551,2]
[347171776,1735545033534,-150.0,0.00015524,2]
[347171777,1735545033543,-154.0963967,0.00015527,2]
[347171778,1735545033553,-150.0,0.00015531,2]
[347171779,1735545033562,-501.26,0.00015539,2]
[347171780,1735545033572,-942.54,0.00015542,2]
[347171781,1735545033581,-154.0963967,0.00015544,2]
[347171782,1735545033590,-150.0,0.00015545,2]
[347171783,1735545033600,-150.0,0.00015551,2]
[347171784,1735545033610,-154.0963967,0.0001556,2]
[347171785,1735545033619,-150.0,0.00015565,2]
[347171786,1735545033630,-150.0,0.00015565,2]
[347171787,1735545033639,-154.0963967,0.00015577,2]
[347171788,1735545033648,-150.0,0.00015586,2]
[347171789,1735545033658,-154.0963967,0.00015594,2]
[347171790,1735545033672,-150.0,0.000156,2]
[347171791,1735545033681,-150.0,0.00015607,2]
[347171792,1735545033691,-154.0963967,0.0001561,2]
[347171793,1735545033700,-3642.0,0.00015616,2]
[347171794,1735545033711,-1000.0,0.00015616,2]
[347171795,1735545033720,-154.0963967,0.00015627,2]
[347171796,1735545033730,-150.0,0.00015627,2]
[347171797,1735545033739,-150.0,0.00015634,2]
[347171798,1735545033749,-1450.07,0.00015641,2]
[347171799,1735545033759,-154.0963967,0.00015644,2]
[347171800,1735545033769,-150.0,0.00015648,2]
[347171801,1735545033778,-518.114,0.0001566,2]
[347171802,1735545033788,-154.0963967,0.0001566,2]
[347171803,1735545033799,-150.0,0.00015668,2]
[347171804,1735545033808,-150.0,0.00015668,2]
[347171805,1735545033818,-150.0,0.00015668,2]
[347171806,1735545033828,-154.0963967,0.00015677,2]
[347171807,1735545033837,-150.0,0.00015689,2]
[347171808,1735545033846,-154.0963967,0.00015693,2]
[347171809,1735545033855,-442.0,0.00015702,2]
[347171810,1735545033865,-150.0,0.00015703,2]
[347171811,1735545033874,-150.0,0.0001571,2]
[347171812,1735545033883,-154.0963967,0.0001571,2]
[347171813,1735545033893,-154.0963967,0.00015727,2]
[347171814,1735545033902,-150.0,0.0001573,2]
[347171815,1735545033912,-150.0,0.00015737,2]
[347171816,1735545033921,-154.0963967,0.00015743,2]
[347171817,1735545033931,-150.0,0.00015751,2]
[347171818,1735545033940,-154.0963967,0.0001576,2]
[347171819,1735545033949,-150.0,0.00015772,2]
[347171820,1735545033958,-150.0,0.00015772,2]
[347171821,1735545033967,-154.0963967,0.00015777,2]
[347171822,1735545033976,-365.19,0.00015778,2]
[347171823,1735545033985,-150.0,0.00015778,2]
[347171824,1735545033995,-150.0,0.00015786,2]
[347171825,1735545034004,-150.0,0.00015792,2]
[347171826,1735545034013,-154.0963967,0.00015793,2]
[347171827,1735545034023,-150.0,0.00015806,2]
[347171828,1735545034032,-154.0963967,0.0001581,2]
[347171829,1735545034043,-150.0,0.00015813,2]
[347171830,1735545034052,-154.0963967,0.00015827,2]
[347171831,1735545034062,-150.0,0.00015833,2]
[347171832,1735545034072,-200.0,0.00015835,2]
[347171833,1735545034081,-150.0,0.0001584,2]
[347171834,1735545034091,-154.0963967,0.00015843,2]
[347171835,1735545034101,-150.0,0.00015854,2]
[347171836,1735545034111,-154.0963967,0.0001586,2]
[347171837,1735545034120,-150.0,0.00015875,2]
[347171838,1735545034129,-150.0,0.00015875,2]
[347171839,1735545034305,-154.0963967,0.00015877,2]
[347171840,1735545034315,-300.0,0.00015889,2]
[347171841,1735545034324,-1000.0,0.0001589,2]
[347171842,1735545034334,-154.0963967,0.00015893,2]
[347171843,1735545034343,-150.0,0.00015895,2]
[347171844,1735545034353,-150.0,0.00015904,2]
[347171845,1735545034362,-150.0,0.00015909,2]
[347171846,1735545034371,-154.0963967,0.0001591,2]
[347171847,1735545034380,-150.0,0.00015916,2]
[347171848,1735545034389,-154.0963967,0.00015927,2]
[347171849,1735545034398,-150.0,0.00015937,2]
[347171850,1735545034408,-150.0,0.00015943,2]
[347171851,1735545034417,-154.0963967,0.00015943,2]
[347171852,1735545034427,-150.0,0.00015957,2]
[347171853,1735545034436,-154.0963967,0.0001596,2]
[347171854,1735545034446,-154.0963967,0.00015977,2]
[347171855,1735545034455,-150.0,0.00015978,2]
[347171856,1735545034465,-150.0,0.00015978,2]
[347171857,1735545034474,-500.0,0.00015987,2]
[347171858,1735545034484,-500.0,0.00015987,2]
[347171859,1735545034493,-800.0,0.00015987,2]
[347171860,1735545034502,-154.0963967,0.00015993,2]
[347171861,1735545034512,-323.36,0.00015996,2]
[347171862,1735545034522,-152.0,0.00015996,3]
[347171863,1735545034532,-150.0,0.00015998,2]
[347171864,1735545034542,-773.70817321,0.00016,2]
[347171865,1735545034551,-1000.0,0.00016,2]
[347171866,1735545034561,-1000.0,0.00016,2]
[347171867,1735545034570,-1000.0,0.00016,2]
[347171868,1735545034579,-1000.0,0.00016,2]
[347171869,1735545034588,-1000.0,0.00016,2]
[347171870,1735545034597,-154.0963967,0.0001601,2]
[347171871,1735545034607,-150.0,0.00016012,2]
[347171872,1735545034616,-150.0,0.00016019,2]
[347171873,1735545034625,-150.0,0.00016022,2]
[347171874,1735545034635,-154.0963967,0.00016027,2]
[347171875,1735545034644,-151.01,0.00016028,2]
[347171876,1735545034653,-150.0,0.0001604,2]
[347171877,1735545034663,-154.0963967,0.00016043,2]
[347171878,1735545034674,-150.0,0.00016046,2]
[347171879,1735545034684,-154.0963967,0.0001606,2]
[347171880,1735545034693,-150.0,0.0001606,2]
[347171881,1735545034702,-154.0963967,0.00016077,2]
[347171882,1735545034712,-150.0,0.00016081,2]
[347171883,1735545034722,-150.0,0.00016081,2]
[347171884,1735545034731,-154.0963967,0.00016093,2]
[347171885,1735545034740,-150.0,0.00016101,2]
[347171886,1735545034751,-154.0963967,0.0001611,2]
[347171887,1735545034760,-150.0,0.00016115,2]
[347171888,1735545034769,-150.0,0.00016122,2]
[347171889,1735545034778,-154.0963967,0.00016127,2]
[347171890,1735545034788,-150.0,0.00016143,2]
[347171891,1735545034799,-154.0963967,0.00016143,2]
[347171892,1735545034809,-150.0,0.0001615,2]
[347171893,1735545034818,-154.0963967,0.0001616,2]
[347171894,1735545034827,-1972.542,0.00016161,2]
[347171895,1735545034836,-1264.0,0.00016161,2]
[347171896,1735545034845,-150.0,0.00016161,2]
[347171897,1735545034854,-565.0,0.00016161,2]
[347171898,1735545034863,-1898.0,0.00016161,2]
[347171899,1735545034872,-3769.0,0.00016161,2]
[347171900,1735545034882,-917.0,0.00016161,2]
[347171901,1735545034891,-817.0,0.00016161,2]
[347171902,1735545034900,-536.0,0.00016161,2]
[347171903,1735545034910,-5769.124,0.00016161,2]
[347171904,1735545034919,-3891.0,0.00016161,2]
[347171905,1735545034928,-150.0,0.00016161,2]
[347171906,1735545034937,-150.0,0.00016163,2]
[347171907,1735545034947,-154.0963967,0.00016177,2]
[347171908,1735545034956,-150.0,0.00016184,2]
[347171909,1735545034965,-150.0,0.00016184,2]
[347171910,1735545034974,-154.0963967,0.00016193,2]
[347171911,1735545034983,-150.0,0.00016205,2]
[347171912,1735545034992,-154.0963967,0.0001621,2]
[347171913,1735545035001,-150.0,0.00016213,2]
[347171914,1735545035011,-150.0,0.00016217,2]
[347171915,1735545035020,-150.0,0.00016218,2]
[347171916,1735545035029,-150.0,0.00016222,2]
[347171917,1735545035038,-150.0,0.00016223,2]
[347171918,1735545035049,-150.0,0.00016225,2]
[347171919,1735545035058,-154.0963967,0.00016227,2]
[347171920,1735545035070,-150.0,0.00016238,2]
[347171921,1735545035079,-429.34778484,0.00016238,2]
[347171922,1735545035089,-150.0,0.00016242,2]
[347171923,1735545035098,-154.0963967,0.00016243,2]
[347171924,1735545035107,-150.0,0.00016246,2]
[347171925,1735545035117,-150.0,0.00016253,2]
[347171926,1735545035126,-150.0,0.00016253,2]
[347171927,1735545035135,-154.0963967,0.0001626,2]
[347171928,1735545035144,-150.0,0.00016266,2]
[347171929,1735545035153,-154.0963967,0.00016277,2]
[347171930,1735545035163,-2666.0676,0.0001628,2]
[347171931,1735545035172,-6138.7557,0.0001628,2]
[347171932,1735545035182,-150.0,0.00016287,2]
[347171933,1735545035191,-150.0,0.00016287,2]
[347171934,1735545035200,-150.0,0.00016288,2]
[347171935,1735545035210,-311.2377,0.00016293,2]
[347171936,1735545035219,-154.0963967,0.00016293,2]
[347171937,1735545035228,-150.0,0.00016299,2]
[347171938,1735545035237,-720.046,0.000163,2]
[347171939,1735545035246,-150.0,0.00016306,2]
[347171940,1735545035255,-150.0,0.00016308,2]
[347171941,1735545035265,-154.0963967,0.0001631,2]
[347171942,1735545035274,-297.28983,0.0001632,2]
[347171943,1735545035284,-150.0,0.00016321,2]
[347171944,1735545035293,-154.0963967,0.00016327,2]
[347171945,1735545035302,-150.0,0.00016328,2]
[347171946,1735545035313,-150.0,0.00016338,2]
[347171947,1735545035322,-150.0,0.00016341,2]
[347171948,1735545035331,-154.0963967,0.00016343,2]
[347171949,1735545035340,-150.0,0.00016345,2]
[347171950,1735545035350,-200.0,0.00016347,2]
[347171951,1735545035360,-500.0,0.00016348,2]
[347171952,1735545035369,-200.0,0.00016348,2]
[347171953,1735545035378,-200.0,0.00016348,2]
[347171954,1735545035388,-150.0,0.00016349,2]
[347171955,1735545035397,-150.0,0.00016356,2]
[347171956,1735545035407,-154.22335431,0.00016356,2]
[347171957,1735545035417,-150.0,0.00016359,2]
[347171958,1735545035427,-150.0,0.00016359,2]
[347171959,1735545035437,-154.0963967,0.0001636,2]
[347171960,1735545035446,-150.0,0.00016361,2]
[347171961,1735545035455,-150.0,0.00016362,2]
[347171962,1735545035465,-150.0,0.00016363,2]